bitfinex-derivatives/quotes_BTCF0:USTF0_20250912
["timestamp","ask_amount","ask_price","bid_price","bid_amount"]
[1757689822671,0.022,115130.0,115120.0,0.64370569]
[1757689823072,0.022,115130.0,115120.0,0.28290569]
[1757689823272,0.022,115130.0,115120.0,0.64370569]
[1757689824576,0.022,115130.0,115120.0,0.80213488]
[1757689824776,0.178309,115140.0,115130.0,0.1232089]
[1757689824777,0.02203,115140.0,115130.0,0.1232089]
[1757689824978,0.02203,115140.0,115130.0,0.65992333]
[1757689825579,0.38287,115150.0,115140.0,0.03638]
[1757689825769,0.38287,115150.0,115140.0,0.19480919]
[1757689825973,0.02207,115150.0,115140.0,0.19480919]
[1757689828282,0.18049919,115150.0,115140.0,0.03638]
[1757689829381,0.19088919,115150.0,115140.0,0.02275]
[1757689830082,0.18049919,115150.0,115140.0,0.03638]
[1757689831283,0.19088919,115150.0,115140.0,0.02275]
[1757689832685,0.55168919,115150.0,115140.0,0.02275]
[1757689833384,0.39326,115150.0,115140.0,0.03638]
[1757689833685,0.55168919,115150.0,115140.0,0.03638]
[1757689833887,0.39326,115150.0,115140.0,0.03638]
[1757689834187,0.55168919,115150.0,115140.0,0.03638]
[1757689835886,0.18049919,115150.0,115140.0,0.03638]
[1757689836289,0.38287,115150.0,115140.0,0.03638]
[1757689836680,0.54129919,115150.0,115140.0,0.03638]
[1757689836880,0.38287,115150.0,115140.0,0.03638]
[1757689837081,0.38287,115150.0,115140.0,0.19480919]
[1757689837293,0.18049919,115150.0,115140.0,0.19480919]
[1757689837886,0.38287,115150.0,115140.0,0.19480919]
[1757689838187,0.02207,115150.0,115140.0,0.19480919]
[1757689838390,0.18049919,115150.0,115140.0,0.19480919]
[1757689839488,0.18049919,115150.0,115140.0,0.03638]
[1757689839990,0.54129919,115150.0,115140.0,0.03638]
[1757689841889,0.18049919,115150.0,115140.0,0.03638]
[1757689842391,0.620493,115150.0,115140.0,0.274003]
[1757689842687,0.259693,115150.0,115140.0,0.274003]
[1757689844592,0.02207,115150.0,115140.0,0.274003]
[1757689844979,0.259693,115150.0,115140.0,0.274003]
[1757689845184,0.02207,115150.0,115140.0,0.3608243]
[1757689845384,0.02207,115150.0,115140.0,0.5984473]
[1757689845590,4e-05,115150.0,115140.0,0.5984473]
[1757689845785,4e-05,115150.0,115140.0,0.60699775]
[1757689846392,0.02207,115150.0,115140.0,0.60699775]
[1757689847090,0.02207,115150.0,115140.0,0.04493045]
[1757689847285,0.259693,115150.0,115140.0,0.03638]
[1757689847486,0.259693,115150.0,115140.0,0.274003]
[1757689848093,0.02207,115150.0,115140.0,0.274003]
[1757689848285,0.259693,115150.0,115140.0,0.274003]
[1757689849095,0.259693,115150.0,115140.0,0.03638]
[1757689849294,0.259693,115150.0,115140.0,0.274003]
[1757689850694,0.259693,115150.0,115140.0,0.03638]
[1757689851082,0.259693,115150.0,115140.0,0.274003]
[1757689854200,0.259693,115150.0,115140.0,0.03638]
[1757689854397,0.259693,115150.0,115140.0,0.274003]
[1757689854991,0.630883,115150.0,115140.0,0.03638]
[1757689855192,0.868506,115150.0,115140.0,0.02275]
[1757689855390,0.630883,115150.0,115140.0,0.02275]
[1757689855794,0.868506,115150.0,115140.0,0.02275]
[1757689856188,0.630883,115150.0,115140.0,0.02275]
[1757689856392,1.915666,115150.0,115130.0,0.03111524]
[1757689856694,0.508316,115140.0,115130.0,0.03858524]
[1757689857089,0.869116,115140.0,115130.0,0.03858524]
[1757689857898,0.869116,115140.0,115130.0,0.03958524]
[1757689860293,1.119116,115140.0,115130.0,0.01848524]
[1757689860487,1.916276,115140.0,115130.0,0.01848524]
[1757689861498,1.916276,115140.0,115130.0,0.03958524]
[1757689863193,1.916236,115140.0,115130.0,0.03958524]
[1757689863501,1.119116,115140.0,115130.0,0.03958524]
[1757689863700,1.97361852,115140.0,115130.0,0.05228524]
[1757689864001,1.73599552,115140.0,115130.0,0.28990824]
[1757689864204,1.97361852,115140.0,115130.0,0.28990824]
[1757689864394,1.98534852,115140.0,115130.0,0.05228524]
[1757689864700,1.98534852,115140.0,115130.0,0.03958524]
[1757689865003,1.98534852,115140.0,115130.0,0.01848524]
[1757689865004,1.73534852,115140.0,115130.0,0.01848524]
[1757689868201,1.26010252,115140.0,115130.0,0.01848524]
[1757689868602,1.73534852,115140.0,115130.0,0.01848524]
[1757689868989,0.93822852,115140.0,115130.0,0.01848524]
[1757689869194,1.73534852,115140.0,115130.0,0.01848524]
[1757689869390,1.73530852,115140.0,115130.0,0.01848524]
[1757689870595,2.22293152,115140.0,115130.0,0.01848524]
[1757689872704,2.22293152,115140.0,115100.0,0.41229653]
[1757689872705,0.03123,115110.0,115100.0,0.41229653]
[1757689872906,0.268853,115110.0,115100.0,0.41229653]
[1757689874006,0.268853,115110.0,115100.0,0.05449653]
[1757689874200,0.268853,115110.0,115100.0,0.04179653]
[1757689874406,0.268853,115110.0,115100.0,0.04579653]
[1757689874701,1.065933,115110.0,115100.0,0.04579653]
[1757689874905,1.07452926,115110.0,115100.0,0.04579653]
[1757689875707,0.27744926,115110.0,115100.0,0.04579653]
[1757689875911,0.83690626,115110.0,115100.0,0.04579653]
[1757689876204,1.07452926,115110.0,115100.0,0.04579653]
[1757689879510,1.07452926,115110.0,115100.0,0.04179653]
[1757689879901,1.07448926,115110.0,115100.0,0.04179653]
[1757689880311,1.07448926,115110.0,115100.0,0.03879653]
[1757689880500,1.07448926,115110.0,115090.0,0.3735]
[1757689880703,0.508316,115100.0,115090.0,0.3946]
[1757689881103,0.508316,115100.0,115090.0,0.632223]
[1757689881508,0.508316,115100.0,115090.0,0.3946]
[1757689881703,0.508316,115100.0,115090.0,0.632223]
[1757689882410,0.508316,115100.0,115090.0,0.3956]
[1757689882808,0.508316,115100.0,115090.0,0.3849]
[1757689883716,0.03307,115100.0,115090.0,0.003]
[1757689884108,0.508316,115100.0,115090.0,0.003]
[1757689884714,1.305356,115100.0,115090.0,0.003]
[1757689885717,0.508316,115100.0,115090.0,0.003]
[1757689885910,1.305356,115100.0,115090.0,0.003]
[1757689887611,1.37530541,115100.0,115090.0,0.003]
[1757689888614,0.57826541,115100.0,115090.0,0.003]
[1757689888816,1.37530541,115100.0,115090.0,0.003]
[1757689890619,1.73610541,115100.0,115090.0,0.003]
[1757689890923,2.22372841,115100.0,115090.0,0.003]
[1757689896013,2.25000335,115100.0,115090.0,0.003]
[1757689896222,0.03285,115070.0,115050.0,0.39163036]
[1757689896421,0.509936,115060.0,115050.0,0.41454036]
[1757689896621,0.509936,115060.0,115050.0,0.50142966]
[1757689897717,0.509936,115060.0,115050.0,0.4841493]
[1757689897917,0.53023764,115060.0,115050.0,0.39726]
[1757689898116,0.53023764,115060.0,115050.0,0.4841493]
[1757689898319,0.53023764,115060.0,115050.0,0.4861493]
[1757689898722,0.53023764,115060.0,115050.0,0.40126]
[1757689899118,0.53023764,115060.0,115050.0,0.40026]
[1757689899519,0.53023764,115060.0,115050.0,0.39926]
[1757689899823,0.53023764,115060.0,115050.0,0.38571]
[1757689900128,0.53895362,115060.0,115050.0,0.3628]
[1757689900327,0.53895362,115060.0,115050.0,0.38571]
[1757689901024,1.33599362,115060.0,115050.0,0.38571]
[1757689901530,1.33603362,115060.0,115050.0,0.38571]
[1757689901925,0.60800993,115060.0,115050.0,0.38571]
[1757689902224,1.40508993,115060.0,115050.0,0.02491]
[1757689902626,0.60804993,115060.0,115050.0,0.02491]
[1757689902815,1.40508993,115060.0,115050.0,0.002]
[1757689903224,1.64271293,115060.0,115050.0,0.002]
[1757689904024,1.40508993,115060.0,115050.0,0.002]
[1757689904517,1.24731199,115060.0,115050.0,0.002]
[1757689904720,0.02835,115050.0,115020.0,0.01772203]
[1757689904920,0.73138569,115030.0,115020.0,0.01772203]
[1757689905534,0.57267166,115030.0,115020.0,0.01772203]
[1757689905934,1.36975166,115030.0,115020.0,0.01972203]
[1757689906227,0.57267166,115030.0,115020.0,0.01972203]
[1757689906424,0.57267166,115030.0,115020.0,0.04663203]
[1757689906620,1.36979166,115030.0,115020.0,0.04663203]
[1757689907829,0.99914166,115030.0,115020.0,0.05984203]
[1757689908531,0.20202166,115030.0,115020.0,0.05984203]
[1757689908732,0.04330763,115030.0,115020.0,0.21855606]
[1757689908929,4e-05,115030.0,115020.0,0.75755393]
[1757689909124,4e-05,115030.0,115020.0,1.07598199]
[1757689909318,4e-05,115030.0,115020.0,1.89100626]
[1757689909522,4e-05,115030.0,115020.0,1.64100626]
[1757689909723,4e-05,115030.0,115020.0,1.39542033]
[1757689910129,4e-05,115030.0,115020.0,1.89104626]
[1757689910727,4e-05,115030.0,115020.0,1.5736182]
[1757689911030,4e-05,115030.0,115020.0,1.73233223]
[1757689911729,4e-05,115030.0,115020.0,1.89104626]
[1757689912929,4e-05,115030.0,115020.0,1.09388626]
[1757689913123,4e-05,115030.0,115020.0,1.89108626]
[1757689914828,4e-05,115030.0,115020.0,1.00697436]
[1757689915025,4e-05,115030.0,115020.0,1.4867463]
[1757689915223,4e-05,115030.0,115020.0,1.64546033]
[1757689915425,4e-05,115030.0,115020.0,1.73237223]
[1757689915825,0.02122,115030.0,115020.0,0.6895463]
[1757689916329,0.02122,115030.0,115020.0,0.84826033]
[1757689916728,0.17993403,115030.0,115020.0,1.39546033]
[1757689916935,0.02122,115030.0,115020.0,1.39546033]
[1757689917141,0.02122,115030.0,115020.0,0.4395463]
[1757689917430,0.59853806,115030.0,115020.0,0.02472203]
[1757689918120,0.98554657,115030.0,115020.0,0.02472203]
[1757689919334,0.98554657,115030.0,115020.0,0.02372203]
[1757689919632,0.98554657,115030.0,115020.0,0.01972203]
[1757689919832,0.98554657,115030.0,115020.0,0.02272203]
[1757689920135,0.57683254,115030.0,115020.0,0.02272203]
[1757689920431,1.37411254,115030.0,115020.0,0.04538203]
[1757689921036,1.5328177,115030.0,115020.0,0.02272203]
[1757689922933,1.5328177,115030.0,115020.0,0.01972203]
[1757689923335,1.5328177,115030.0,115020.0,0.01872203]
[1757689924029,1.5328177,115030.0,115020.0,0.04138203]
[1757689924230,1.5328177,115030.0,115020.0,0.01872203]
[1757689924636,1.21538964,115030.0,115020.0,0.01872203]
[1757689924836,1.21538964,115030.0,115020.0,0.04138203]
[1757689925035,1.37410367,115030.0,115020.0,0.04138203]
[1757689925736,1.37410367,115030.0,115020.0,0.01872203]
[1757689926140,1.5328177,115030.0,115020.0,0.01872203]
[1757689927037,1.5328177,115030.0,115020.0,0.01772203]
[1757689927235,1.5338177,115030.0,115020.0,0.01772203]
[1757689931242,1.5338177,115030.0,115000.0,0.37395]
[1757689931544,0.19363403,115020.0,115010.0,0.02266]
[1757689931735,0.21983367,115020.0,115010.0,0.02266]
[1757689932637,0.3785477,115020.0,115010.0,0.02266]
[1757689933035,0.20810367,115020.0,115010.0,0.03581]
[1757689933237,0.20810367,115020.0,115010.0,0.55532403]
[1757689933734,0.04938964,115020.0,115010.0,0.80532403]
[1757689934340,0.02319,115020.0,115010.0,0.64661]
[1757689934541,0.02319,115020.0,115010.0,0.80632403]
[1757689935342,0.18190403,115020.0,115010.0,0.80632403]
[1757689935541,0.18190403,115020.0,115010.0,0.64761]
[1757689936446,0.18194403,115030.0,115020.0,0.03581]
[1757689936644,0.20821771,115030.0,115020.0,0.03581]
[1757689937649,0.20921771,115030.0,115020.0,0.03581]
[1757689938046,0.05050368,115030.0,115020.0,0.03581]
[1757689938550,0.20921771,115030.0,115020.0,0.03581]
[1757689939044,0.05050368,115030.0,115020.0,0.03581]
[1757689939349,0.20921771,115030.0,115020.0,0.03581]
[1757689940244,0.02423,115030.0,115020.0,0.44452403]
[1757689940449,0.00104,115030.0,115020.0,0.44452403]
[1757689940745,0.00104,115030.0,115020.0,0.80532403]
[1757689941344,0.02423,115030.0,115020.0,0.80532403]
[1757689941742,0.02423,115030.0,115020.0,0.64661]
[1757689942045,0.00104,115030.0,115020.0,0.80532403]
[1757689942250,0.02245,115030.0,115020.0,0.80532403]
[1757689942753,0.00104,115030.0,115020.0,0.80532403]
[1757689943252,0.02245,115030.0,115020.0,0.80532403]
[1757689946053,0.00104,115030.0,115020.0,0.80532403]
[1757689946254,0.02245,115030.0,115020.0,0.7335206]
[1757689946454,0.02245,115030.0,115020.0,0.89223463]
[1757689946754,0.00104,115030.0,115020.0,0.80532403]
[1757689946954,0.02245,115030.0,115020.0,1.60560403]
[1757689947853,0.02245,115030.0,115020.0,0.80532403]
[1757689948051,0.02245,115030.0,115020.0,1.60548403]
[1757689949858,0.02245,115030.0,115020.0,1.44677]
[1757689950059,0.02245,115030.0,115020.0,1.60548403]
[1757689950258,0.00104,115030.0,115020.0,1.69239543]
[1757689952058,0.00104,115030.0,115020.0,0.80532403]
[1757689952258,0.00104,115030.0,115020.0,1.60524403]
[1757689955064,0.02245,115030.0,115020.0,1.60496403]
[1757689955862,0.02245,115030.0,115020.0,1.44625]
[1757689956162,0.02245,115030.0,115020.0,1.60496403]
[1757689956862,0.00104,115030.0,115020.0,1.60496403]
[1757689959263,0.00104,115030.0,115020.0,1.35496403]
[1757689959453,0.00104,115030.0,115020.0,1.60058956]
[1757689959658,0.00104,115030.0,115020.0,1.85058956]
[1757689961068,0.54959472,115060.0,115050.0,0.03705]
[1757689961567,0.39088069,115060.0,115050.0,0.03705]
[1757689961768,0.54096403,115060.0,115050.0,0.03705]
[1757689961967,0.5498215,115060.0,115050.0,0.03705]
[1757689962367,0.71153553,115060.0,115050.0,0.03705]
[1757689963367,0.70267806,115060.0,115050.0,0.03705]
[1757689963564,0.54396403,115060.0,115050.0,0.03705]
[1757689963761,0.54596403,115060.0,115050.0,0.03705]
[1757689964365,0.86326166,115060.0,115050.0,0.03705]
[1757689965168,0.50246166,115060.0,115050.0,0.03705]
[1757689965977,0.76419166,115060.0,115050.0,0.02313]
[1757689966677,0.76419166,115060.0,115040.0,1.1736]
[1757689966981,0.02222,115050.0,115040.0,0.63476583]
[1757689967282,0.26022583,115050.0,115040.0,0.63476583]
[1757689968286,0.26222583,115050.0,115040.0,0.63476583]
[1757689969477,0.002,115050.0,115040.0,0.87277166]
[1757689969781,0.003,115050.0,115040.0,0.87277166]
[1757689970080,0.02522,115050.0,115040.0,0.87277166]
[1757689971088,0.26322583,115050.0,115040.0,0.63476583]
[1757689971288,0.26322583,115050.0,115040.0,0.87277166]
[1757689971786,0.26322583,115050.0,115040.0,1.43316583]
[1757689973385,0.26322583,115050.0,115040.0,1.43312583]
[1757689974188,0.02522,115050.0,115040.0,1.43312583]
[1757689974382,0.26322583,115050.0,115040.0,1.43312583]
[1757689975085,0.26322583,115050.0,115040.0,0.39676]
[1757689975473,0.27311583,115050.0,115040.0,0.39676]
[1757689975685,0.90424012,115050.0,115040.0,0.02204]
[1757689975982,0.90424012,115050.0,115030.0,1.04988583]
[1757689976189,0.23800583,115040.0,115030.0,1.04988583]
[1757689976389,0.49853166,115040.0,115030.0,1.07252583]
[1757689976588,0.49853166,115040.0,115030.0,0.8346]
[1757689977485,0.50708182,115040.0,115030.0,0.0366]
[1757689978890,0.49853166,115040.0,115030.0,0.0366]
[1757689979388,0.26052583,115040.0,115030.0,0.0366]
[1757689980484,0.26052583,115040.0,115030.0,0.27460583]
[1757689980686,0.34973872,115050.0,115040.0,0.0128]
[1757689980882,0.04284429,115050.0,115040.0,0.51149166]
[1757689981189,0.02032429,115050.0,115040.0,1.67021166]
[1757689982192,0.02232429,115050.0,115040.0,1.67021166]
[1757689982382,0.26033012,115050.0,115040.0,1.43220583]
[1757689983191,0.26133012,115050.0,115040.0,1.43220583]
[1757689984187,0.28385012,115050.0,115040.0,1.19452]
[1757689984482,0.28385012,115050.0,115040.0,1.43252583]
[1757689985395,0.28385012,115050.0,115040.0,1.51942503]
[1757689986094,0.28385012,115050.0,115040.0,1.43252583]
[1757689987391,0.28385012,115050.0,115040.0,1.67053166]
[1757689989094,0.28385012,115050.0,115040.0,1.43252583]
[1757689989290,0.26352583,115050.0,115040.0,1.43252583]
[1757689989490,0.26352583,115050.0,115040.0,1.19416]
[1757689989691,0.02552,115050.0,115040.0,1.43216583]
[1757689989891,0.26352583,115050.0,115040.0,1.19416]
[1757689990090,0.26352583,115050.0,115040.0,1.43216583]
[1757689990492,0.26352583,115050.0,115040.0,1.19412]
[1757689990796,0.26352583,115050.0,115040.0,1.19404]
[1757689992196,0.02552,115050.0,115040.0,1.43204583]
[1757689992600,0.26352583,115050.0,115040.0,1.43204583]
[1757689993301,0.26352583,115050.0,115040.0,1.19404]
[1757689993491,0.24100583,115050.0,115040.0,1.67005166]
[1757689993892,0.003,115050.0,115040.0,1.67005166]
[1757689994098,0.24100583,115050.0,115040.0,1.43204583]
[1757689994399,0.003,115050.0,115040.0,1.19404]
[1757689994601,0.003,115050.0,115040.0,1.67005166]
[1757689995496,0.003,115050.0,115040.0,2.00695086]
[1757689999405,4e-05,115060.0,115040.0,2.00695086]
[1757689999606,4e-05,115060.0,115050.0,0.27348583]
[1757689999908,4e-05,115060.0,115050.0,0.72117743]
[1757690000706,0.00204,115060.0,115050.0,0.72117743]
[1757690002108,0.00404,115060.0,115050.0,0.72117743]
[1757690002710,0.00304,115060.0,115050.0,0.72117743]
[1757690003210,0.00304,115060.0,115050.0,0.4831716]
[1757690003404,0.00304,115060.0,115050.0,0.72117743]
[1757690004310,0.02561,115060.0,115050.0,0.72117743]
[1757690004606,0.26361583,115060.0,115050.0,0.39628]
[1757690004806,0.26361583,115060.0,115050.0,1.43168583]
[1757690005001,0.26361583,115060.0,115050.0,0.63428583]
[1757690005201,0.26361583,115060.0,115050.0,1.43168583]
[1757690005397,0.50162166,115060.0,115050.0,0.39628]
[1757690005599,1.12231166,115060.0,115050.0,0.02268]
[1757690006410,0.6463,115060.0,115050.0,0.02268]
[1757690006600,1.12231166,115060.0,115050.0,0.02268]
[1757690008010,1.12231166,115060.0,115040.0,1.0309174]
[1757690008215,0.59880583,115050.0,115040.0,1.0309174]
[1757690009507,0.62137583,115050.0,115040.0,0.81612157]
[1757690009810,0.62137583,115050.0,115040.0,1.0541274]
[1757690010204,0.38337,115050.0,115040.0,1.0541274]
[1757690010398,0.001,115050.0,115040.0,1.29213323]
[1757690010810,0.002,115050.0,115040.0,1.29213323]
[1757690012018,0.002,115050.0,115040.0,0.85068157]
[1757690012310,0.24000583,115050.0,115040.0,1.0886874]
[1757690012511,0.26257583,115050.0,115040.0,0.85068157]
[1757690012711,0.02457,115050.0,115040.0,1.0886874]
[1757690012911,0.02457,115050.0,115040.0,1.32669323]
[1757690013110,0.26257583,115050.0,115040.0,1.32669323]
[1757690013312,0.2484493,115050.0,115040.0,1.68749323]
[1757690013711,0.01044347,115050.0,115040.0,1.68749323]
[1757690013913,0.2484493,115050.0,115040.0,1.68749323]
[1757690016214,0.36084,115060.0,115040.0,1.68749323]
[1757690016417,0.62141583,115060.0,115050.0,0.27465583]
[1757690017514,0.62241583,115060.0,115050.0,0.27465583]
[1757690017709,0.86042166,115060.0,115050.0,0.27465583]
[1757690017915,0.62241583,115060.0,115050.0,0.27465583]
[1757690018215,0.26161583,115060.0,115050.0,0.27465583]
[1757690018715,0.26261583,115060.0,115050.0,0.27465583]
[1757690023016,0.02461,115060.0,115050.0,0.27465583]
[1757690023316,0.50062166,115060.0,115050.0,0.27465583]
[1757690023509,0.50062166,115060.0,115050.0,0.03665]
[1757690023711,0.75828166,115060.0,115040.0,1.4262774]
[1757690023911,0.23800583,115050.0,115040.0,1.4262774]
[1757690024110,0.02257,115050.0,115040.0,0.41408157]
[1757690024314,0.26057583,115050.0,115040.0,0.6520874]
[1757690026421,0.1812598,115050.0,115040.0,0.57277137]
[1757690027012,0.02257,115050.0,115040.0,0.57277137]
[1757690028820,0.02257,115050.0,115040.0,0.65967057]
[1757690030510,0.02257,115050.0,115040.0,0.50098077]
[1757690030714,0.02257,115050.0,115040.0,0.57277137]
[1757690032327,0.1812598,115050.0,115040.0,0.57277137]
[1757690033124,0.02257,115050.0,115040.0,0.57277137]
[1757690033421,0.02257,115050.0,115040.0,0.65967057]
[1757690034323,0.00844382,115050.0,115040.0,0.65967057]
[1757690037126,0.00844382,115050.0,115040.0,0.81836037]
[1757690038525,0.00844382,115050.0,115040.0,0.65967057]
[1757690039124,0.00844382,115050.0,115040.0,0.81836037]
[1757690039328,0.01709,115060.0,115050.0,0.03618]
[1757690039526,0.01709,115060.0,115050.0,0.9922298]
[1757690040027,4e-05,115060.0,115050.0,0.9922298]
[1757690040421,0.01709,115060.0,115050.0,0.9922298]
[1757690040621,0.00104,115060.0,115050.0,0.9922298]
[1757690040926,0.00204,115060.0,115050.0,0.9922298]
[1757690041530,0.00204,115060.0,115050.0,1.4399215]
[1757690042326,0.00204,115060.0,115050.0,1.6899215]
[1757690042729,0.00204,115060.0,115050.0,0.8925615]
[1757690043024,4e-05,115060.0,115050.0,1.8485713]
[1757690043618,4e-05,115060.0,115050.0,1.0512513]
[1757690043818,4e-05,115060.0,115050.0,1.8485713]
[1757690044023,4e-05,115060.0,115050.0,1.6898815]
[1757690044234,0.02030883,115080.0,115070.0,0.03618]
[1757690044430,0.02030883,115080.0,115070.0,1.0790664]
[1757690044733,0.02030883,115080.0,115070.0,0.2817464]
[1757690045124,0.02030883,115080.0,115070.0,1.0790664]
[1757690045325,0.02030883,115080.0,115070.0,0.2817464]
[1757690045629,0.02030883,115080.0,115070.0,1.0790264]
[1757690045925,0.02030883,115080.0,115070.0,0.1230566]
[1757690046129,0.02030883,115080.0,115070.0,1.0790264]
[1757690046333,0.02230883,115080.0,115070.0,1.0790264]
[1757690046827,0.02230883,115080.0,115070.0,0.2817464]
[1757690047021,0.02430883,115080.0,115070.0,1.0790264]
[1757690047731,0.02430883,115080.0,115070.0,1.4398264]
[1757690047933,0.02430883,115080.0,115070.0,1.2811366]
[1757690048131,0.02430883,115080.0,115070.0,1.4398264]
[1757690048326,0.02430883,115080.0,115070.0,1.0790264]
[1757690049032,0.02430883,115080.0,115070.0,0.2817464]
[1757690049228,0.02430883,115080.0,115070.0,1.0789864]
[1757690049429,0.20004863,115080.0,115070.0,0.03618]
[1757690049630,0.35873843,115080.0,115070.0,0.03618]
[1757690050329,0.20004863,115080.0,115070.0,0.03618]
[1757690050833,0.35873843,115080.0,115070.0,0.03618]
[1757690051332,0.20004863,115080.0,115070.0,0.03618]
[1757690051634,0.71953843,115080.0,115070.0,0.03618]
[1757690053634,0.96953843,115080.0,115060.0,0.0136]
[1757690053933,0.56084863,115080.0,115070.0,0.03618]
[1757690055034,0.71953843,115080.0,115070.0,0.03618]
[1757690056828,0.56084863,115080.0,115070.0,0.03618]
[1757690057036,0.71953843,115080.0,115070.0,0.03618]
[1757690057335,0.71753843,115080.0,115070.0,0.03618]
[1757690057530,0.71953843,115080.0,115070.0,0.03618]
[1757690059031,0.96953843,115080.0,115060.0,0.0136]
[1757690059235,0.1757398,115070.0,115060.0,0.03618]
[1757690061334,0.1767398,115070.0,115060.0,0.03618]
[1757690062937,0.1777398,115070.0,115060.0,0.03618]
[1757690067532,0.1777398,115070.0,115060.0,0.39698]
[1757690067837,0.01905,115070.0,115060.0,0.5556698]
[1757690068031,0.1777398,115070.0,115060.0,0.5556698]
[1757690069141,0.01905,115070.0,115060.0,0.5556698]
[1757690069336,0.1777398,115070.0,115060.0,0.39698]
[1757690069537,0.002,115070.0,115060.0,0.39698]
[1757690069738,0.002,115070.0,115060.0,0.5556698]
[1757690069932,0.01905,115070.0,115060.0,0.5556698]
[1757690075344,0.01905,115070.0,115060.0,0.39698]
[1757690075744,0.1777398,115070.0,115060.0,1.3526698]
[1757690076040,0.1777398,115070.0,115060.0,1.19398]
[1757690076345,0.01905,115070.0,115060.0,1.3526698]
[1757690076548,0.1777398,115070.0,115060.0,1.3526698]
[1757690077447,0.01905,115070.0,115060.0,1.3526698]
[1757690078549,0.002,115070.0,115060.0,1.3526698]
[1757690080638,0.002,115070.0,115060.0,1.19398]
[1757690080842,0.002,115070.0,115060.0,1.3526698]
[1757690083152,0.002,115070.0,115060.0,1.1939]
[1757690083153,0.1777398,115070.0,115060.0,1.1939]
[1757690084156,0.1777398,115070.0,115060.0,1.3525898]
[1757690084850,0.1777398,115070.0,115060.0,0.5556698]
[1757690085154,0.1777398,115070.0,115060.0,1.3525898]
[1757690085455,0.01905,115070.0,115060.0,1.3525898]
[1757690085658,0.1777398,115070.0,115060.0,1.3525898]
[1757690086152,0.01905,115070.0,115060.0,1.3525898]
[1757690086360,0.002,115070.0,115060.0,1.5112796]
[1757690086550,0.01905,115070.0,115060.0,0.7143596]
[1757690086857,0.01905,115070.0,115060.0,1.5112396]
[1757690087156,0.01905,115070.0,115060.0,1.3525498]
[1757690088160,0.01905,115070.0,115060.0,0.39698]
[1757690088357,0.01905,115070.0,115060.0,1.6697018]
[1757690091150,0.002,115070.0,115060.0,1.6697018]
[1757690091350,0.002,115070.0,115060.0,1.7565859]
[1757690092755,0.002,115070.0,115060.0,1.6697018]
[1757690094360,0.002,115070.0,115060.0,1.7565859]
[1757690094560,0.002,115070.0,115060.0,1.19386]
[1757690095059,0.002,115070.0,115060.0,1.6697018]
[1757690096261,0.002,115070.0,115060.0,1.7565859]
[1757690096455,0.002,115070.0,115060.0,2.0065859]
[1757690097551,4e-05,115070.0,115060.0,2.0065859]
[1757690098357,4e-05,115070.0,115060.0,2.07462764]
[1757690099454,4e-05,115070.0,115060.0,2.31254854]
[1757690100559,4e-05,115070.0,115060.0,2.07462764]
[1757690101466,0.71391284,115100.0,115090.0,0.03505]
[1757690101769,0.95183374,115100.0,115090.0,0.2729709]
[1757690102266,0.94308776,115100.0,115090.0,0.2729709]
[1757690102457,0.63608591,115100.0,115090.0,0.2729709]
[1757690102767,0.63908591,115100.0,115090.0,0.03505]
[1757690103065,0.63908591,115100.0,115090.0,0.2729709]
[1757690103755,0.64308591,115100.0,115090.0,0.2729709]
[1757690103952,0.28228591,115100.0,115090.0,0.2729709]
[1757690104566,0.04436501,115100.0,115090.0,0.2729709]
[1757690104868,0.64308591,115100.0,115090.0,0.2729709]
[1757690105757,0.88100681,115100.0,115090.0,0.03505]
[1757690106562,1.36892771,115100.0,115080.0,0.01325]
[1757690106761,0.8537618,115090.0,115080.0,0.03505]
[1757690106961,1.9004018,115090.0,115070.0,0.01325]
[1757690107171,0.4929618,115080.0,115070.0,0.03505]
[1757690108068,0.8537618,115080.0,115070.0,0.03505]
[1757690108263,0.8537618,115080.0,115060.0,0.3744]
[1757690108463,0.2550409,115070.0,115060.0,0.3962]
[1757690108865,0.01712,115070.0,115060.0,0.3962]
[1757690109374,0.2550409,115070.0,115060.0,0.3962]
[1757690110174,0.2635295,115070.0,115060.0,0.3962]
[1757690111173,0.0276086,115070.0,115060.0,0.6341209]
[1757690111376,0.2655295,115070.0,115060.0,0.6341209]
[1757690111576,0.2655295,115070.0,115060.0,0.3962]
[1757690111974,0.6263295,115070.0,115060.0,0.0354]
[1757690121288,0.3884086,115070.0,115060.0,0.0354]
[1757690121490,0.6263295,115070.0,115060.0,0.0354]
[1757690121990,0.3884086,115070.0,115060.0,0.2733209]
[1757690122186,0.6263295,115070.0,115060.0,0.0354]
[1757690122389,0.6263295,115070.0,115060.0,0.2733209]
[1757690122588,0.6263295,115070.0,115060.0,0.0354]
[1757690123088,0.6263295,115070.0,115060.0,0.2733209]
[1757690123597,0.3884086,115070.0,115060.0,0.2733209]
[1757690123787,0.6263295,115070.0,115060.0,0.2733209]
[1757690123985,0.6178409,115070.0,115060.0,0.2733209]
[1757690125791,0.6178409,115070.0,115060.0,0.0354]
[1757690128686,1.4162409,115070.0,115060.0,0.0354]
[1757690129391,0.6178409,115070.0,115060.0,0.0354]
[1757690129588,1.4162009,115070.0,115060.0,0.0354]
[1757690130093,0.6178409,115070.0,115060.0,0.0354]
[1757690130298,1.4161209,115070.0,115060.0,0.0354]
[1757690132698,1.4157609,115070.0,115060.0,0.0354]
[1757690134091,1.6536818,115070.0,115060.0,0.0354]
[1757690134491,1.6536818,115070.0,115050.0,0.01325]
[1757690134687,0.8537618,115060.0,115050.0,0.03435]
[1757690135291,0.37792,115060.0,115050.0,0.03435]
[1757690135599,1.6514818,115060.0,115050.0,0.03435]
[1757690135894,1.17564,115060.0,115050.0,0.03435]
[1757690136094,1.6514818,115060.0,115050.0,0.03435]
[1757690136293,0.8537618,115060.0,115050.0,0.03435]
[1757690139799,1.6510018,115060.0,115050.0,0.03435]
[1757690140597,0.8537618,115060.0,115050.0,0.03435]
[1757690140790,1.1752,115060.0,115050.0,0.03435]
[1757690140989,1.6510418,115060.0,115050.0,0.03435]
[1757690141496,1.6510418,115060.0,115050.0,0.2722709]
[1757690142005,0.6158809,115060.0,115050.0,0.2722709]
[1757690143201,0.37796,115060.0,115050.0,0.2722709]
[1757690143398,0.6158809,115060.0,115050.0,0.2722709]
[1757690144090,1.4128009,115060.0,115050.0,0.2722709]
[1757690144500,0.6158809,115060.0,115050.0,0.2722709]
[1757690144704,1.4128009,115060.0,115050.0,0.2722709]